[Event "*** Titled Tuesday Blitz"]
[Site "Chess.com"]
[Date "2020.11.03"]
[Round "8"]
[White "NikolaGry"]
[Black "Alindsay211"]
[Result "1-0"]
[WhiteElo "2632"]
[BlackElo "2458"]
[TimeControl "180+1"]
[EndTime "11:31:16 PST"]
[Termination "NikolaGry won by resignation"]

1. b3 {[%clk 0:03:00.9]} 1... b6 {[%clk 0:02:59.5]} 2. Bb2 {[%clk 0:03:00.6]}
2... Bb7 {[%clk 0:02:59]} 3. Nf3 {[%clk 0:03:00.9]} 3... Nf6 {[%clk 0:02:53.4]}
4. e3 {[%clk 0:03:00.6]} 4... e6 {[%clk 0:02:52.4]} 5. Be2 {[%clk 0:03:00.8]}
5... g6 {[%clk 0:02:51.8]} 6. O-O {[%clk 0:02:57.2]} 6... Bg7 {[%clk 0:02:50.5]}
7. c4 {[%clk 0:02:57.3]} 7... O-O {[%clk 0:02:49.7]} 8. d4 {[%clk 0:02:55.1]}
8... d5 {[%clk 0:02:48]} 9. Nc3 {[%clk 0:02:52.7]} 9... c5 {[%clk 0:02:42.4]}
10. dxc5 {[%clk 0:02:49.9]} 10... bxc5 {[%clk 0:02:41.2]} 11. Rc1 {[%clk
0:02:49.9]} 11... Ne4 {[%clk 0:02:28.3]} 12. cxd5 {[%clk 0:02:41.7]} 12... exd5
{[%clk 0:02:21.1]} 13. Qc2 {[%clk 0:02:07]} 13... Nxc3 {[%clk 0:02:00.3]} 14.
Bxc3 {[%clk 0:02:06.7]} 14... d4 {[%clk 0:01:55.2]} 15. Rfd1 {[%clk 0:02:05.3]}
15... Nc6 {[%clk 0:01:49.4]} 16. Be1 {[%clk 0:01:47.9]} 16... dxe3 {[%clk
0:01:44.3]} 17. Rxd8 {[%clk 0:01:44.8]} 17... exf2+ {[%clk 0:01:43.6]} 18. Bxf2
{[%clk 0:01:41.4]} 18... Raxd8 {[%clk 0:01:41]} 19. Qxc5 {[%clk 0:01:37.8]}
19... Rc8 {[%clk 0:01:36.1]} 20. Qb5 {[%clk 0:01:27.6]} 20... Nd4 {[%clk
0:01:30.7]} 21. Rxc8 {[%clk 0:01:24.4]} 21... Nxb5 {[%clk 0:01:27.9]} 22. Rxf8+
{[%clk 0:01:23.6]} 22... Kxf8 {[%clk 0:01:25.4]} 23. Bxb5 {[%clk 0:01:22.9]}
23... Ke7 {[%clk 0:01:25]} 24. Bxa7 {[%clk 0:01:21]} 24... Kd6 {[%clk
0:01:22.2]} 25. Bc4 {[%clk 0:01:18.9]} 25... f5 {[%clk 0:01:15.1]} 26. b4 {[%clk
0:01:13.1]} 26... Bc3 {[%clk 0:01:11.5]} 27. Bc5+ {[%clk 0:01:11.1]} 27... Kd7
{[%clk 0:01:04.3]} 28. a4 {[%clk 0:01:08.6]} 28... Bc6 {[%clk 0:00:56.1]} 29. a5
{[%clk 0:01:04.7]} 29... Kc7 {[%clk 0:00:49.5]} 30. a6 {[%clk 0:00:59.6]} 30...
Ba8 {[%clk 0:00:44.1]} 31. b5 {[%clk 0:00:55.6]} 31... Ba5 {[%clk 0:00:41.3]}
32. Nd4 {[%clk 0:00:53.5]} 32... Bb6 {[%clk 0:00:36.2]} 33. Ne6+ {[%clk
0:00:53]} 1-0

[Event "*** Titled Tuesday Blitz"]
[Site "Chess.com"]
[Date "2020.11.03"]
[Round "8"]
[White "Shield12"]
[Black "PaulfromSPb"]
[Result "1-0"]
[WhiteElo "2908"]
[BlackElo "2708"]
[TimeControl "180+1"]
[EndTime "11:31:17 PST"]
[Termination "Shield12 won by resignation"]

1. e4 {[%clk 0:03:00.9]} 1... c5 {[%clk 0:02:59]} 2. Nf3 {[%clk 0:03:00.8]} 2...
d6 {[%clk 0:02:57.6]} 3. d4 {[%clk 0:03:00.6]} 3... cxd4 {[%clk 0:02:58.5]} 4.
Qxd4 {[%clk 0:03:01.3]} 4... a6 {[%clk 0:02:53.9]} 5. c4 {[%clk 0:03:01.3]} 5...
Nc6 {[%clk 0:02:52.8]} 6. Qe3 {[%clk 0:03:01.6]} 6... g6 {[%clk 0:02:51.7]} 7.
Nc3 {[%clk 0:03:01.1]} 7... Bg7 {[%clk 0:02:51.6]} 8. h3 {[%clk 0:03:01.3]} 8...
Nf6 {[%clk 0:02:51.6]} 9. Be2 {[%clk 0:03:01.6]} 9... Nd7 {[%clk 0:02:51]} 10.
O-O {[%clk 0:03:01.8]} 10... O-O {[%clk 0:02:51.1]} 11. Rd1 {[%clk 0:03:02]}
11... Nc5 {[%clk 0:02:49.3]} 12. Bd2 {[%clk 0:03:00.9]} 12... Ne6 {[%clk
0:02:43]} 13. Rac1 {[%clk 0:02:54]} 13... Bd7 {[%clk 0:02:40.2]} 14. b3 {[%clk
0:02:50.6]} 14... Ned4 {[%clk 0:02:34.1]} 15. Nxd4 {[%clk 0:02:49.1]} 15... Bxd4
{[%clk 0:02:33.6]} 16. Qg3 {[%clk 0:02:45.4]} 16... Bg7 {[%clk 0:02:25.9]} 17.
Nd5 {[%clk 0:02:43.1]} 17... Nd4 {[%clk 0:02:22.5]} 18. Bf1 {[%clk 0:02:42.8]}
18... b5 {[%clk 0:02:22.5]} 19. Bg5 {[%clk 0:02:31.5]} 19... f6 {[%clk
0:02:05.2]} 20. Be3 {[%clk 0:02:18.6]} 20... Ne6 {[%clk 0:02:04.9]} 21. Nb6
{[%clk 0:02:05.9]} 21... Rb8 {[%clk 0:02:00.2]} 22. c5 {[%clk 0:02:05.5]} 22...
f5 {[%clk 0:01:46.2]} 23. exf5 {[%clk 0:02:04]} 23... gxf5 {[%clk 0:01:47.1]}
24. cxd6 {[%clk 0:01:38.8]} 24... f4 {[%clk 0:01:40]} 25. dxe7 {[%clk
0:01:38.5]} 25... Qxe7 {[%clk 0:01:37.6]} 26. Rxd7 {[%clk 0:01:33.3]} 26... Qxd7
{[%clk 0:01:28.5]} 27. Nxd7 {[%clk 0:01:34.2]} 27... fxg3 {[%clk 0:01:28.3]} 28.
Nxb8 {[%clk 0:01:21.9]} 28... gxf2+ {[%clk 0:01:27.5]} 29. Bxf2 {[%clk
0:01:22.8]} 29... Rxb8 {[%clk 0:01:27.7]} 30. Rc6 {[%clk 0:01:23.4]} 30... Nd4
{[%clk 0:01:19.3]} 31. Rxa6 {[%clk 0:01:22.7]} 31... b4 {[%clk 0:01:19.4]} 32.
Bc4+ {[%clk 0:01:21.6]} 32... Kh8 {[%clk 0:01:19.1]} 33. Ra7 {[%clk 0:01:19.7]}
33... Nc6 {[%clk 0:01:16.3]} 34. Rc7 {[%clk 0:01:18.6]} 34... Ne5 {[%clk
0:01:11.5]} 35. Bg3 {[%clk 0:01:12]} 35... Re8 {[%clk 0:01:08.9]} 36. Bb5 {[%clk
0:01:11.4]} 36... Rb8 {[%clk 0:00:56.2]} 37. Rxg7 {[%clk 0:01:10.6]} 37... Rxb5
{[%clk 0:00:56.3]} 38. Bxe5 {[%clk 0:01:09.6]} 38... Rxe5 {[%clk 0:00:56.6]} 39.
Rb7 {[%clk 0:01:08.5]} 39... Re4 {[%clk 0:00:54.5]} 40. Kf2 {[%clk 0:01:04.1]}
40... h5 {[%clk 0:00:53.6]} 41. Kf3 {[%clk 0:01:03.6]} 41... Rd4 {[%clk
0:00:53.7]} 42. Ke3 {[%clk 0:00:58.9]} 42... Rh4 {[%clk 0:00:53.8]} 43. Rc7
{[%clk 0:00:56.5]} 43... Kg8 {[%clk 0:00:50.9]} 44. Rc4 {[%clk 0:00:56]} 44...
Rxc4 {[%clk 0:00:49.9]} 45. bxc4 {[%clk 0:00:56.9]} 1-0

[Event "*** Titled Tuesday Blitz"]
[Site "Chess.com"]
[Date "2020.11.03"]
[Round "8"]
[White "lucachess49"]
[Black "redbaron8888"]
[Result "0-1"]
[WhiteElo "2369"]
[BlackElo "2549"]
[TimeControl "180+1"]
[EndTime "11:31:19 PST"]
[Termination "redbaron8888 won by resignation"]

1. d4 {[%clk 0:02:57.1]} 1... Nf6 {[%clk 0:02:59.7]} 2. c4 {[%clk 0:02:56.9]}
2... e6 {[%clk 0:03:00.4]} 3. Nc3 {[%clk 0:02:55.6]} 3... Bb4 {[%clk 0:03:00.4]}
4. e3 {[%clk 0:02:54.9]} 4... O-O {[%clk 0:03:00.5]} 5. Ne2 {[%clk 0:02:55.5]}
5... c6 {[%clk 0:02:59.1]} 6. a3 {[%clk 0:02:55.5]} 6... Ba5 {[%clk 0:02:59.3]}
7. Qc2 {[%clk 0:02:56.1]} 7... d5 {[%clk 0:02:58.6]} 8. Ng3 {[%clk 0:02:56.2]}
8... Nbd7 {[%clk 0:02:51.8]} 9. Be2 {[%clk 0:02:56]} 9... dxc4 {[%clk
0:02:43.9]} 10. Bxc4 {[%clk 0:02:56.1]} 10... e5 {[%clk 0:02:44.1]} 11. O-O
{[%clk 0:02:55.5]} 11... exd4 {[%clk 0:02:43.7]} 12. exd4 {[%clk 0:02:55.8]}
12... Bc7 {[%clk 0:02:42.4]} 13. Ba2 {[%clk 0:02:11.5]} 13... Nb6 {[%clk
0:02:39.9]} 14. Re1 {[%clk 0:01:41.6]} 14... Qxd4 {[%clk 0:02:29.2]} 15. Be3
{[%clk 0:01:41.1]} 15... Qh4 {[%clk 0:02:26.4]} 16. Bc5 {[%clk 0:01:18]} 16...
Ng4 {[%clk 0:01:38]} 17. h3 {[%clk 0:01:04.4]} 17... Nxf2 {[%clk 0:01:34.5]} 18.
Qxf2 {[%clk 0:00:58.7]} 18... Bxh3 {[%clk 0:01:28.3]} 19. Nge4 {[%clk
0:00:49.9]} 19... Qg4 {[%clk 0:01:17]} 20. Bxf8 {[%clk 0:00:29.3]} 20... Rxf8
{[%clk 0:01:17.9]} 21. Ng5 {[%clk 0:00:19.8]} 21... Nc4 {[%clk 0:01:08.7]} 22.
Bxc4 {[%clk 0:00:18]} 22... Bb6 {[%clk 0:01:08.6]} 23. Re3 {[%clk 0:00:12.8]}
23... Bxe3 {[%clk 0:01:08.2]} 24. Bxf7+ {[%clk 0:00:07.3]} 24... Kh8 {[%clk
0:01:05.5]} 25. Nxh3 {[%clk 0:00:05.7]} 25... Bxf2+ {[%clk 0:01:04.1]} 26. Nxf2
{[%clk 0:00:06.6]} 26... Qf4 {[%clk 0:01:01.7]} 27. Re1 {[%clk 0:00:02.7]} 27...
Qxf7 {[%clk 0:01:01.1]} 28. Nce4 {[%clk 0:00:01.2]} 28... Qb3 {[%clk 0:01:00.3]}
29. Re2 {[%clk 0:00:02.1]} 29... Re8 {[%clk 0:00:58.4]} 30. Ng5 {[%clk
0:00:01.9]} 30... Rxe2 {[%clk 0:00:56.8]} 31. Nf7+ {[%clk 0:00:02.8]} 0-1

[Event "*** Titled Tuesday Blitz"]
[Site "Chess.com"]
[Date "2020.11.03"]
[Round "8"]
[White "UB_TheQueen"]
[Black "TheCairnTerrier"]
[Result "0-1"]
[WhiteElo "2068"]
[BlackElo "2182"]
[TimeControl "180+1"]
[EndTime "11:31:20 PST"]
[Termination "TheCairnTerrier won by resignation"]

1. e4 {[%clk 0:03:00.9]} 1... c5 {[%clk 0:02:59.6]} 2. Nf3 {[%clk 0:03:00.6]}
2... e6 {[%clk 0:02:59.7]} 3. d4 {[%clk 0:03:01.2]} 3... cxd4 {[%clk 0:03:00.6]}
4. Nxd4 {[%clk 0:03:01.7]} 4... Nf6 {[%clk 0:03:00.2]} 5. Nc3 {[%clk 0:03:02.2]}
5... d6 {[%clk 0:03:00.6]} 6. Bc4 {[%clk 0:03:01.3]} 6... Be7 {[%clk 0:02:59.7]}
7. Bb3 {[%clk 0:03:01.5]} 7... O-O {[%clk 0:02:59.5]} 8. g4 {[%clk 0:03:01.8]}
8... Nc6 {[%clk 0:02:53.6]} 9. g5 {[%clk 0:02:59.7]} 9... Nd7 {[%clk 0:02:53.1]}
10. h4 {[%clk 0:02:55.4]} 10... a6 {[%clk 0:02:52.7]} 11. Be3 {[%clk 0:02:54.9]}
11... Nc5 {[%clk 0:02:52.2]} 12. Qe2 {[%clk 0:02:50.1]} 12... Nxd4 {[%clk
0:02:47]} 13. Bxd4 {[%clk 0:02:49.7]} 13... Nxb3 {[%clk 0:02:47.2]} 14. axb3
{[%clk 0:02:49.3]} 14... Bd7 {[%clk 0:02:42]} 15. O-O-O {[%clk 0:02:48.8]} 15...
Qc7 {[%clk 0:02:31.6]} 16. f4 {[%clk 0:02:46.4]} 16... b5 {[%clk 0:02:21.2]} 17.
f5 {[%clk 0:02:45.9]} 17... b4 {[%clk 0:02:09.5]} 18. f6 {[%clk 0:02:43.3]}
18... bxc3 {[%clk 0:02:04.9]} 19. fxe7 {[%clk 0:02:41.6]} 19... cxb2+ {[%clk
0:02:01.3]} 20. Bxb2 {[%clk 0:02:37.6]} 20... Rfe8 {[%clk 0:01:57]} 21. Qd3
{[%clk 0:02:24.7]} 21... Rac8 {[%clk 0:01:37.2]} 22. Rh2 {[%clk 0:02:19]} 22...
d5 {[%clk 0:01:08.1]} 23. Qd4 {[%clk 0:01:51.1]} 23... e5 {[%clk 0:01:07.1]} 24.
Qxd5 {[%clk 0:01:51.3]} 24... Rxe7 {[%clk 0:01:06.4]} 25. Ba3 {[%clk 0:01:47.4]}
25... Be6 {[%clk 0:00:47.2]} 26. Qd3 {[%clk 0:01:28.6]} 26... Rd7 {[%clk
0:00:43.3]} 27. Qe2 {[%clk 0:01:20.7]} 27... Bxb3 {[%clk 0:00:40.4]} 28. Rxd7
{[%clk 0:01:17.9]} 28... Qxd7 {[%clk 0:00:39.7]} 29. Qxa6 {[%clk 0:01:12.3]}
29... Be6 {[%clk 0:00:30.7]} 30. Qa5 {[%clk 0:00:59.1]} 30... Qd4 {[%clk
0:00:27.8]} 31. Bb2 {[%clk 0:00:55.3]} 31... Qg1+ {[%clk 0:00:26.9]} 32. Kd2
{[%clk 0:00:53.2]} 32... Qxh2+ {[%clk 0:00:26.6]} 33. Kd3 {[%clk 0:00:51.8]}
33... Qxc2+ {[%clk 0:00:26.3]} 34. Ke3 {[%clk 0:00:51.7]} 34... Qxb2 {[%clk
0:00:24.1]} 35. Kf3 {[%clk 0:00:51.9]} 35... Rc3+ {[%clk 0:00:23.1]} 0-1

[Event "*** Titled Tuesday Blitz"]
[Site "Chess.com"]
[Date "2020.11.03"]
[Round "8"]
[White "esskeettit"]
[Black "QuintilianoR"]
[Result "0-1"]
[WhiteElo "2456"]
[BlackElo "2628"]
[TimeControl "180+1"]
[EndTime "11:31:22 PST"]
[Termination "QuintilianoR won by checkmate"]

1. d4 {[%clk 0:03:00.9]} 1... Nf6 {[%clk 0:02:59.7]} 2. c4 {[%clk 0:03:01.2]}
2... e6 {[%clk 0:02:59.1]} 3. Nf3 {[%clk 0:03:01]} 3... b6 {[%clk 0:02:58.2]} 4.
a3 {[%clk 0:02:56.9]} 4... Bb7 {[%clk 0:02:56.5]} 5. Nc3 {[%clk 0:02:54.7]} 5...
d5 {[%clk 0:02:56.7]} 6. cxd5 {[%clk 0:02:55.1]} 6... Nxd5 {[%clk 0:02:57.6]} 7.
Qc2 {[%clk 0:02:55.5]} 7... Be7 {[%clk 0:02:57.1]} 8. e4 {[%clk 0:02:55.1]} 8...
Nxc3 {[%clk 0:02:57.4]} 9. bxc3 {[%clk 0:02:55.5]} 9... O-O {[%clk 0:02:57.9]}
10. Bd3 {[%clk 0:02:54.7]} 10... c5 {[%clk 0:02:56.4]} 11. O-O {[%clk
0:02:54.4]} 11... Nd7 {[%clk 0:02:56.7]} 12. Bf4 {[%clk 0:02:47.8]} 12... Rc8
{[%clk 0:02:51.7]} 13. Qe2 {[%clk 0:02:46.5]} 13... Nf6 {[%clk 0:02:49.4]} 14.
h3 {[%clk 0:02:43.9]} 14... cxd4 {[%clk 0:02:37.1]} 15. cxd4 {[%clk 0:02:43]}
15... Rc3 {[%clk 0:02:37.4]} 16. a4 {[%clk 0:02:30.7]} 16... Qa8 {[%clk
0:02:32.3]} 17. Nd2 {[%clk 0:02:21.2]} 17... Rd8 {[%clk 0:02:24.5]} 18. Be5
{[%clk 0:02:02.7]} 18... Nd7 {[%clk 0:02:18.5]} 19. Bf4 {[%clk 0:01:58.2]} 19...
Nc5 {[%clk 0:02:09.5]} 20. dxc5 {[%clk 0:01:41.6]} 20... Rcxd3 {[%clk
0:02:07.2]} 21. cxb6 {[%clk 0:01:36.5]} 21... axb6 {[%clk 0:02:08.1]} 22. f3
{[%clk 0:01:23]} 22... e5 {[%clk 0:02:01.3]} 23. Bxe5 {[%clk 0:01:11.9]} 23...
Rxd2 {[%clk 0:01:59.8]} 24. Qe1 {[%clk 0:01:12.8]} 24... Bf8 {[%clk 0:01:35.5]}
25. Qg3 {[%clk 0:01:08.3]} 25... Qa5 {[%clk 0:01:33.3]} 26. Rfc1 {[%clk
0:01:05.2]} 26... Re2 {[%clk 0:00:50.5]} 27. Rc7 {[%clk 0:01:01.3]} 27... Rdd2
{[%clk 0:00:48.2]} 28. Bc3 {[%clk 0:00:47.6]} 28... Rxg2+ {[%clk 0:00:47.7]} 29.
Qxg2 {[%clk 0:00:45.4]} 29... Rxg2+ {[%clk 0:00:48.6]} 30. Kxg2 {[%clk
0:00:45.9]} 30... Qg5+ {[%clk 0:00:47.8]} 31. Kf2 {[%clk 0:00:45.1]} 31... Bc5+
{[%clk 0:00:40.9]} 32. Ke2 {[%clk 0:00:43.9]} 32... Qe3+ {[%clk 0:00:38.8]} 33.
Kd1 {[%clk 0:00:42.7]} 33... Qxc3 {[%clk 0:00:34.9]} 34. Rc1 {[%clk 0:00:42.4]}
34... Qxf3+ {[%clk 0:00:33.5]} 35. Kc2 {[%clk 0:00:42.4]} 35... Bxe4+ {[%clk
0:00:32.6]} 36. Kb2 {[%clk 0:00:42.7]} 36... Qa3# {[%clk 0:00:31.7]} 0-1

[Event "*** Titled Tuesday Blitz"]
[Site "Chess.com"]
[Date "2020.11.03"]
[Round "8"]
[White "ViktoriyaTarasova"]
[Black "BlixLT"]
[Result "0-1"]
[WhiteElo "2253"]
[BlackElo "2385"]
[TimeControl "180+1"]
[EndTime "11:31:23 PST"]
[Termination "BlixLT won by resignation"]

1. d4 {[%clk 0:03:00.9]} 1... d5 {[%clk 0:02:59.7]} 2. c4 {[%clk 0:03:00.4]}
2... Nc6 {[%clk 0:02:59.5]} 3. cxd5 {[%clk 0:02:58.2]} 3... Qxd5 {[%clk
0:02:59.1]} 4. e3 {[%clk 0:02:58.6]} 4... e5 {[%clk 0:02:58.9]} 5. Nc3 {[%clk
0:02:59.2]} 5... Bb4 {[%clk 0:02:58.9]} 6. a3 {[%clk 0:02:58.2]} 6... Bxc3+
{[%clk 0:02:48.4]} 7. bxc3 {[%clk 0:02:57.8]} 7... Nf6 {[%clk 0:02:25.3]} 8. Ne2
{[%clk 0:02:56.5]} 8... Bg4 {[%clk 0:02:19.7]} 9. h3 {[%clk 0:02:48.8]} 9...
Bxe2 {[%clk 0:02:16.8]} 10. Qxe2 {[%clk 0:02:45.8]} 10... O-O {[%clk 0:02:14.5]}
11. c4 {[%clk 0:02:21.3]} 11... Qd6 {[%clk 0:02:09.7]} 12. d5 {[%clk 0:02:18.2]}
12... Nb8 {[%clk 0:02:08.5]} 13. e4 {[%clk 0:02:12.8]} 13... Na6 {[%clk
0:02:06.5]} 14. Qc2 {[%clk 0:02:08.3]} 14... Nc5 {[%clk 0:02:04.2]} 15. Bd3
{[%clk 0:02:08.3]} 15... c6 {[%clk 0:01:55.6]} 16. O-O {[%clk 0:01:53.2]} 16...
Rac8 {[%clk 0:01:53.8]} 17. f4 {[%clk 0:01:31.5]} 17... cxd5 {[%clk 0:01:47.1]}
18. exd5 {[%clk 0:01:27.4]} 18... e4 {[%clk 0:01:42.5]} 19. Be2 {[%clk
0:01:26.4]} 19... b5 {[%clk 0:01:37.8]} 20. Bb2 {[%clk 0:01:13.2]} 20... bxc4
{[%clk 0:01:25.3]} 21. Bxc4 {[%clk 0:01:04.9]} 21... Nd3 {[%clk 0:01:13]} 22.
Bxf6 {[%clk 0:00:40.4]} 22... Qxf6 {[%clk 0:01:12.8]} 23. Bxd3 {[%clk
0:00:20.4]} 23... Rxc2 {[%clk 0:00:55]} 24. Bxc2 {[%clk 0:00:20.6]} 24... Rc8
{[%clk 0:00:55.1]} 25. Bb3 {[%clk 0:00:19.9]} 25... Qc3 {[%clk 0:00:41.4]} 26.
Rac1 {[%clk 0:00:17.3]} 26... Qe3+ {[%clk 0:00:38.9]} 0-1

[Event "*** Titled Tuesday Blitz"]
[Site "Chess.com"]
[Date "2020.11.03"]
[Round "8"]
[White "Bacyanide"]
[Black "oogee"]
[Result "1-0"]
[WhiteElo "2402"]
[BlackElo "2197"]
[TimeControl "180+1"]
[EndTime "11:31:30 PST"]
[Termination "Bacyanide won by resignation"]

1. d4 {[%clk 0:03:00.9]} 1... Nf6 {[%clk 0:02:38.3]} 2. Nf3 {[%clk 0:02:59.6]}
2... g6 {[%clk 0:02:37.3]} 3. c4 {[%clk 0:02:58]} 3... Bg7 {[%clk 0:02:34.8]} 4.
Nc3 {[%clk 0:02:58.9]} 4... d6 {[%clk 0:02:34.2]} 5. e4 {[%clk 0:02:58.4]} 5...
O-O {[%clk 0:02:33.2]} 6. Be2 {[%clk 0:02:58.9]} 6... e5 {[%clk 0:02:32.1]} 7.
O-O {[%clk 0:02:59.8]} 7... Nc6 {[%clk 0:01:55.6]} 8. d5 {[%clk 0:02:59.1]} 8...
Ne7 {[%clk 0:01:55]} 9. Ne1 {[%clk 0:02:58.4]} 9... Nd7 {[%clk 0:01:53.7]} 10.
Nd3 {[%clk 0:02:53.2]} 10... f5 {[%clk 0:01:52.8]} 11. Bd2 {[%clk 0:02:52.8]}
11... f4 {[%clk 0:01:51.6]} 12. Bg4 {[%clk 0:02:43]} 12... h5 {[%clk 0:01:46.3]}
13. Be6+ {[%clk 0:02:41.8]} 13... Kh7 {[%clk 0:01:43.1]} 14. f3 {[%clk
0:02:41.2]} 14... g5 {[%clk 0:01:40.8]} 15. Rc1 {[%clk 0:02:38.6]} 15... Rf6
{[%clk 0:01:39.1]} 16. Be1 {[%clk 0:02:21.7]} 16... Rxe6 {[%clk 0:01:35.8]} 17.
dxe6 {[%clk 0:02:22.6]} 17... Nf6 {[%clk 0:01:35.1]} 18. Nxe5 {[%clk 0:02:15.1]}
18... Bxe6 {[%clk 0:01:31]} 19. Nd3 {[%clk 0:02:10.5]} 19... Bxc4 {[%clk
0:01:29.2]} 20. h4 {[%clk 0:02:01.1]} 20... g4 {[%clk 0:01:27.9]} 21. b3 {[%clk
0:01:57.5]} 21... Ba6 {[%clk 0:01:26.5]} 22. Nxf4 {[%clk 0:01:52]} 22... Bxf1
{[%clk 0:01:24.6]} 23. Kxf1 {[%clk 0:01:52.9]} 23... Qd7 {[%clk 0:01:15.8]} 24.
Bf2 {[%clk 0:01:45.5]} 24... Rf8 {[%clk 0:01:04.4]} 25. Ncd5 {[%clk 0:01:33]}
25... Qb5+ {[%clk 0:00:49.5]} 26. Kg1 {[%clk 0:01:28.5]} 26... Nexd5 {[%clk
0:00:48.5]} 27. exd5 {[%clk 0:01:21.4]} 27... Qa5 {[%clk 0:00:46.9]} 28. Ne6
{[%clk 0:01:17]} 28... Rf7 {[%clk 0:00:43.6]} 29. Qd3+ {[%clk 0:01:14.9]} 29...
Kg8 {[%clk 0:00:42.5]} 30. Qg6 {[%clk 0:01:09.8]} 30... Qd2 {[%clk 0:00:32.8]}
31. Re1 {[%clk 0:01:05.9]} 31... Qc3 {[%clk 0:00:22.9]} 32. Ng5 {[%clk 0:00:51]}
1-0

[Event "*** Titled Tuesday Blitz"]
[Site "Chess.com"]
[Date "2020.11.03"]
[Round "8"]
[White "guillembaches"]
[Black "LubovMarkelova"]
[Result "1-0"]
[WhiteElo "2383"]
[BlackElo "2241"]
[TimeControl "180+1"]
[EndTime "11:31:31 PST"]
[Termination "guillembaches won by resignation"]

1. e4 {[%clk 0:02:58]} 1... e6 {[%clk 0:02:59.7]} 2. Nf3 {[%clk 0:02:57.9]} 2...
d5 {[%clk 0:03:00.6]} 3. exd5 {[%clk 0:02:58.6]} 3... exd5 {[%clk 0:03:00.6]} 4.
d4 {[%clk 0:02:59.3]} 4... Bd6 {[%clk 0:03:01.2]} 5. c4 {[%clk 0:02:59]} 5...
Nf6 {[%clk 0:03:00.5]} 6. Nc3 {[%clk 0:02:59]} 6... dxc4 {[%clk 0:03:00.7]} 7.
Bxc4 {[%clk 0:02:58.5]} 7... O-O {[%clk 0:03:01.4]} 8. O-O {[%clk 0:02:59]} 8...
Nc6 {[%clk 0:03:02]} 9. h3 {[%clk 0:02:57.6]} 9... h6 {[%clk 0:03:01.7]} 10. a3
{[%clk 0:02:49.3]} 10... Bf5 {[%clk 0:03:01.7]} 11. Re1 {[%clk 0:02:48.2]} 11...
Qd7 {[%clk 0:03:01.7]} 12. d5 {[%clk 0:02:47.7]} 12... Ne7 {[%clk 0:03:00.8]}
13. Ne5 {[%clk 0:02:38.8]} 13... Bxe5 {[%clk 0:02:57.3]} 14. Rxe5 {[%clk
0:02:39.7]} 14... Ng6 {[%clk 0:02:56.4]} 15. Re1 {[%clk 0:02:32.7]} 15... Rfe8
{[%clk 0:02:55.9]} 16. Be3 {[%clk 0:02:26.5]} 16... Bxh3 {[%clk 0:02:54.1]} 17.
gxh3 {[%clk 0:02:23.2]} 17... Qxh3 {[%clk 0:02:54.1]} 18. Bf1 {[%clk 0:02:23.3]}
18... Qf5 {[%clk 0:02:42]} 19. Qd4 {[%clk 0:02:06.4]} 19... Ng4 {[%clk 0:02:28]}
20. Bh3 {[%clk 0:01:50.6]} 20... N6e5 {[%clk 0:02:13.5]} 21. Bxg4 {[%clk
0:01:36.5]} 21... Nxg4 {[%clk 0:02:13.5]} 22. Qf4 {[%clk 0:01:28.4]} 22... Qh5
{[%clk 0:02:12]} 23. Kg2 {[%clk 0:01:20.2]} 23... g5 {[%clk 0:02:08]} 24. Qg3
{[%clk 0:01:13.8]} 24... f5 {[%clk 0:02:07.6]} 25. Qxc7 {[%clk 0:00:53.8]} 25...
f4 {[%clk 0:01:57.1]} 26. Rh1 {[%clk 0:00:44.5]} 26... Qg6 {[%clk 0:01:48.3]}
27. Bd4 {[%clk 0:00:38]} 27... Rac8 {[%clk 0:01:37.6]} 28. Qxb7 {[%clk
0:00:37.1]} 28... f3+ {[%clk 0:01:31.8]} 29. Kg1 {[%clk 0:00:26.6]} 29... Rc4
{[%clk 0:01:22.1]} 30. Qxa7 {[%clk 0:00:19.5]} 30... Ne5 {[%clk 0:01:15.7]} 31.
Re1 {[%clk 0:00:18.1]} 31... Qf5 {[%clk 0:01:10.7]} 32. Bxe5 {[%clk 0:00:18.1]}
32... Rxe5 {[%clk 0:01:09]} 33. Qb8+ {[%clk 0:00:17.5]} 33... Kg7 {[%clk
0:01:01.8]} 34. Qxe5+ {[%clk 0:00:17.6]} 34... Qxe5 {[%clk 0:00:58.9]} 35. Rxe5
{[%clk 0:00:18.2]} 35... Rg4+ {[%clk 0:00:59.5]} 36. Kf1 {[%clk 0:00:15.3]}
36... Kf6 {[%clk 0:00:57.6]} 37. Re3 {[%clk 0:00:15]} 37... Kf5 {[%clk
0:00:58.4]} 38. Rxf3+ {[%clk 0:00:14.6]} 1-0

[Event "*** Titled Tuesday Blitz"]
[Site "Chess.com"]
[Date "2020.11.03"]
[Round "8"]
[White "Lady_Nika"]
[Black "alexsergeyev"]
[Result "1-0"]
[WhiteElo "2456"]
[BlackElo "2328"]
[TimeControl "180+1"]
[EndTime "11:31:32 PST"]
[Termination "Lady_Nika won on time"]

1. d4 {[%clk 0:03:00.9]} 1... d5 {[%clk 0:02:58.9]} 2. e3 {[%clk 0:03:00.9]}
2... Nf6 {[%clk 0:02:57.9]} 3. f4 {[%clk 0:02:59.9]} 3... Bg4 {[%clk 0:02:56.1]}
4. Be2 {[%clk 0:02:59.2]} 4... Bxe2 {[%clk 0:02:54.7]} 5. Qxe2 {[%clk 0:02:59]}
5... b6 {[%clk 0:02:33.7]} 6. Nf3 {[%clk 0:02:55.3]} 6... e6 {[%clk 0:02:32.5]}
7. O-O {[%clk 0:02:54.4]} 7... Bd6 {[%clk 0:02:29.6]} 8. Nbd2 {[%clk 0:02:54.2]}
8... c5 {[%clk 0:02:28.8]} 9. Ne5 {[%clk 0:02:54.5]} 9... Nbd7 {[%clk
0:02:23.1]} 10. c3 {[%clk 0:02:53.2]} 10... Qc7 {[%clk 0:02:14.5]} 11. Rf3
{[%clk 0:02:49.6]} 11... g6 {[%clk 0:02:10.4]} 12. Rh3 {[%clk 0:02:48.6]} 12...
h5 {[%clk 0:02:06.6]} 13. Rf3 {[%clk 0:02:42.8]} 13... Ne4 {[%clk 0:01:48.4]}
14. Nxe4 {[%clk 0:02:35.9]} 14... dxe4 {[%clk 0:01:47.6]} 15. Rf1 {[%clk
0:02:33.8]} 15... Nf6 {[%clk 0:01:43]} 16. Qb5+ {[%clk 0:02:30.9]} 16... Kf8
{[%clk 0:01:41.8]} 17. Bd2 {[%clk 0:02:29.7]} 17... Kg7 {[%clk 0:01:41]} 18. h3
{[%clk 0:02:27.9]} 18... cxd4 {[%clk 0:01:29.6]} 19. exd4 {[%clk 0:02:27.2]}
19... h4 {[%clk 0:01:19.9]} 20. Rae1 {[%clk 0:02:26.3]} 20... Rh5 {[%clk
0:01:18.5]} 21. Qe2 {[%clk 0:02:24.6]} 21... Rf5 {[%clk 0:01:13.3]} 22. Rf2
{[%clk 0:02:14]} 22... Rh8 {[%clk 0:01:10]} 23. Ng4 {[%clk 0:02:06.6]} 23... Nd5
{[%clk 0:00:55.4]} 24. Qxe4 {[%clk 0:02:04.5]} 24... Nxf4 {[%clk 0:00:50.8]} 25.
Bxf4 {[%clk 0:02:01.3]} 25... Bxf4 {[%clk 0:00:48.6]} 26. Ref1 {[%clk
0:02:00.5]} 26... Bg3 {[%clk 0:00:47.2]} 27. Rf3 {[%clk 0:01:54.4]} 27... Rhh5
{[%clk 0:00:43.7]} 28. Ne3 {[%clk 0:01:53.6]} 28... Rxf3 {[%clk 0:00:40.3]} 29.
Qxf3 {[%clk 0:01:52.1]} 29... b5 {[%clk 0:00:30.9]} 30. Qf6+ {[%clk 0:01:50.9]}
30... Kg8 {[%clk 0:00:26.8]} 31. Ng4 {[%clk 0:01:35.6]} 31... a5 {[%clk
0:00:11.2]} 32. a3 {[%clk 0:01:26]} 32... b4 {[%clk 0:00:10.4]} 33. axb4 {[%clk
0:01:25.5]} 33... axb4 {[%clk 0:00:10.2]} 34. Ra1 {[%clk 0:01:25.5]} 34... Qb7
{[%clk 0:00:03.4]} 35. c4 {[%clk 0:01:22.4]} 35... b3 {[%clk 0:00:02]} 36. Rd1
{[%clk 0:01:17.5]} 36... Kh7 {[%clk 0:00:01.8]} 37. Qf3 {[%clk 0:01:10.6]} 1-0